[Event "TUR-chT Superleague 2018"]
[Site "Ankara"]
[Date "2018.07.25"]
[Round "1"]
[White "Goganov, Alexey"]
[Black "Abasov, Nijat"]
[Result "1/2-1/2"]
[ECO "B33"]
[WhiteElo "2576"]
[BlackElo "2623"]
[Annotator "ChessBase"]
[PlyCount "60"]
[EventDate "2018.07.25"]
[EventType "team-tourn"]
[EventCountry "TUR"]
[SourceTitle "playchess.com"]
[Source "ChessBase"]
[SourceQuality "1"]
[TimeControl "40/5400+30:1800+30"]

1. e4 {[%emt 0:00:30]} c5 {[%emt 0:00:30]} 2. Nf3 {[%emt 0:00:30]} Nc6 {[%emt 0:00:30]} 3. d4 {[%emt 0:00:30]} cxd4 {[%emt 0:00:30]} 4. Nxd4 {[%emt 0:00:30]} Nf6 {[%emt 0:00:30]} 5. Nc3 {[%emt 0:00:30]} e5 {[%emt 0:00:00]} 6. Ndb5 {[%emt 0:00:00]} d6 {[%emt 0:00:00]} 7. Bg5 {[%emt 0:00:00]} a6 {[%emt 0:00:00]} 8. Na3 {[%emt 0:00:00]} b5 {[%emt 0:00:00]} 9. Nd5 {[%emt 0:00:00]} Be7 {[%emt 0:00:30]} 10. Bxf6 {[%emt 0:00:00]} Bxf6 {[%emt 0:00:00]} 11. c3 {[%emt 0:00:00]} Bg5 {[%emt 0:01:00]} 12. Nc2 {[%emt 0:00:00]} Rb8 {[%emt 0:00:00]} 13. a4 {[%emt 0:04:00]} bxa4 {[%emt 0:00:00]} 14. Ncb4 {[%emt 0:00:00]} Nxb4 {[%emt 0:00:30]} 15. cxb4 {[%emt 0:04:00]} O-O {[%emt 0:00:30]} 16. Rxa4 {[%emt 0:02:30]} a5 {[%emt 0:00:00]} 17. b5 {[%emt 0:02:30]} Bd7 {[%emt 0:00:00]} 18. Nc3 {[%emt 0:01:30]} d5 {[%emt 0:01:30]} 19. Nxd5 {[%emt 0:03:30]} Bxb5 {[%emt 0:01:30]} 20. Bxb5 {[%emt 0:06:30]} Rxb5 {[%emt 0:00:00]} 21. O-O {[%emt 0:00:30]} Rxb2 {[%emt 0:02:00]} 22. Qa1 {[%emt 0:01:30]} Qb8 {[%emt 0:13:30]} 23. Rxa5 {[%emt 0:00:00]} Qb3 {[%emt 0:02:30]} 24. Rc5 {[%emt 0:07:00]} h6 {[%emt 0:07:30]} 25. Rc3 {[%emt 0:05:30]} Qb5 {[%emt 0:00:30]} 26. Rc5 {[%emt 0:08:30]} Qb3 {[%emt 0:04:30]} 27. Rc3 {[%emt 0:01:30]} Qb5 {[%emt 0:00:30]} 28. Rc5 {[%emt 0:00:30]} Qb3 {[%emt 0:00:30]} 29. Rc3 {[%emt 0:00:00]} Qb5 {[%emt 0:00:00]} 30. Rc5 {[%emt 0:00:00]} Qb3 {[%emt 0:00:00]} 1/2-1/2

[Event "TUR-chT Superleague 2018"]
[Site "Ankara"]
[Date "2018.07.25"]
[Round "1"]
[White "Shevchenko, Kirill"]
[Black "Uzumcu, Ahmet Utku"]
[Result "1-0"]
[ECO "A45"]
[WhiteElo "2554"]
[BlackElo "2261"]
[Annotator "ChessBase"]
[PlyCount "95"]
[EventDate "2018.07.25"]
[EventType "team-tourn"]
[EventCountry "TUR"]
[SourceTitle "playchess.com"]
[Source "ChessBase"]
[SourceQuality "1"]
[TimeControl "40/5400+30:1800+30"]

1. d4 {[%emt 0:00:30]} Nf6 {[%emt 0:00:30]} 2. Bf4 {[%emt 0:00:00]} g6 {[%emt 0:00:30]} 3. Nc3 {[%emt 0:00:00]} d5 {[%emt 0:01:30]} 4. e3 {[%emt 0:01:30]} Bg7 {[%emt 0:00:30]} 5. h4 {[%emt 0:00:30]} c5 {[%emt 0:02:30]} 6. Nb5 {[%emt 0:01:30]} Na6 {[%emt 0:01:30]} 7. c3 {[%emt 0:00:00]} h5 {[%emt 0:07:30]} 8. Nf3 {[%emt 0:03:00]} O-O {[%emt 0:01:30]} 9. Be2 {[%emt 0:04:30]} Bf5 {[%emt 0:09:30]} 10. Ne5 {[%emt 0:07:30]} Qc8 {[%emt 0:07:30]} 11. f3 {[%emt 0:12:30]} Nd7 {[%emt 0:05:30]} 12. g4 {[%emt 0:09:30]} hxg4 {[%emt 0:01:30]} 13. Nxg4 {[%emt 0:00:30]} Bxg4 {[%emt 0:24:30]} 14. fxg4 {[%emt 0:00:30]} e5 {[%emt 0:00:30]} 15. dxe5 {[%emt 0:05:30]} Qc6 {[%emt 0:04:30]} 16. e4 {[%emt 0:05:30]} d4 {[%emt 0:02:30]} 17. cxd4 {[%emt 0:05:30]} Qxe4 {[%emt 0:01:30]} 18. O-O {[%emt 0:01:30]} Nb4 {[%emt 0:10:13]} 19. Nd6 {[%emt 0:18:30]} Qxd4+ {[%emt 0:01:11]} 20. Qxd4 {[%emt 0:00:30]} cxd4 {[%emt 0:00:01]} 21. Bc4 {[%emt 0:01:30]} Bxe5 {[%emt 0:06:47]} 22. Nxf7 {[%emt 0:03:07]} Bxf4 {[%emt 0:00:26]} 23. Ne5+ {[%emt 0:02:26]} Kg7 {[%emt 0:02:35]} 24. Nxd7 {[%emt 0:00:13]} Be3+ {[%emt 0:01:16]} 25. Kg2 {[%emt 0:03:41]} Rf4 {[%emt 0:01:17]} 26. Nc5 {[%emt 0:04:29]} Rxf1 {[%emt 0:01:40]} 27. Rxf1 {[%emt 0:00:09]} Rc8 {[%emt 0:00:00]} 28. Rf7+ {[%emt 0:02:02]} Kh8 {[%emt 0:00:04]} 29. Ne4 {[%emt 0:06:19]} Bh6 {[%emt 0:02:41]} 30. Nd6 {[%emt 0:00:42]} Rd8 {[%emt 0:01:43]} 31. Nxb7 {[%emt 0:01:35]} Rf8 {[%emt 0:00:34]} 32. Nd6 {[%emt 0:00:13]} Nc2 {[%emt 0:00:56]} 33. Kf3 {[%emt 0:00:33]} Ne3 {[%emt 0:01:12]} 34. Bd3 {[%emt 0:00:21]} Rxf7+ {[%emt 0:00:17]} 35. Nxf7+ {[%emt 0:00:30]} Kg7 {[%emt 0:00:02]} 36. Nxh6 {[%emt 0:00:32]} Kxh6 {[%emt 0:00:02]} 37. g5+ {[%emt 0:00:34]} Kg7 {[%emt 0:00:22]} 38. b4 {[%emt 0:00:47]} Nd5 {[%emt 0:00:30]} 39. a3 {[%emt 0:00:30]} Nc3 {[%emt 0:00:00]} 40. Kf4 {[%emt 0:00:00]} Nd5+ {[%emt 0:00:00]} 41. Ke5 {[%emt 0:01:17]} Ne3 {[%emt 0:01:11]} 42. Kxd4 {[%emt 0:01:30]} Ng2 {[%emt 0:00:30]} 43. Be4 {[%emt 0:00:30]} Nxh4 {[%emt 0:00:30]} 44. b5 {[%emt 0:00:30]} Kf7 {[%emt 0:00:30]} 45. a4 {[%emt 0:00:00]} Ke6 {[%emt 0:00:30]} 46. a5 {[%emt 0:00:00]} Kd6 {[%emt 0:00:00]} 47. b6 {[%emt 0:00:30]} axb6 {[%emt 0:00:00]} 48. a6 {[%emt 0:00:30]} 1-0

[Event "TUR-chT Superleague 2018"]
[Site "Ankara"]
[Date "2018.07.25"]
[Round "1"]
[White "Sanal, Vahap"]
[Black "Yilmazyerli, Mert"]
[Result "1/2-1/2"]
[ECO "B94"]
[WhiteElo "2515"]
[BlackElo "2491"]
[Annotator "ChessBase"]
[PlyCount "157"]
[EventDate "2018.07.25"]
[EventType "team-tourn"]
[EventCountry "TUR"]
[SourceTitle "playchess.com"]
[Source "ChessBase"]
[SourceQuality "1"]
[TimeControl "40/5400+30:1800+30"]

1. e4 {[%emt 0:00:30]} c5 {[%emt 0:00:30]} 2. Nf3 {[%emt 0:00:00]} d6 {[%emt 0:00:30]} 3. d4 {[%emt 0:00:00]} cxd4 {[%emt 0:00:30]} 4. Nxd4 {[%emt 0:00:30]} Nf6 {[%emt 0:00:30]} 5. Nc3 {[%emt 0:00:30]} a6 {[%emt 0:00:30]} 6. Bg5 {[%emt 0:00:00]} Nbd7 {[%emt 0:00:00]} 7. Qe2 {[%emt 0:00:00]} h6 {[%emt 0:00:00]} 8. Bh4 {[%emt 0:06:30]} g6 {[%emt 0:01:30]} 9. O-O-O {[%emt 0:00:30]} e5 {[%emt 0:06:30]} 10. Nb3 {[%emt 0:02:30]} Be7 {[%emt 0:05:30]} 11. Qd2 {[%emt 0:00:30]} Qc7 {[%emt 0:02:30]} 12. Kb1 {[%emt 0:00:30]} b5 {[%emt 0:06:30]} 13. a3 {[%emt 0:00:30]} Bb7 {[%emt 0:01:30]} 14. Bd3 {[%emt 0:00:30]} Kf8 {[%emt 0:13:30]} 15. Rhf1 {[%emt 0:01:30]} Kg7 {[%emt 0:05:30]} 16. f4 {[%emt 0:00:30]} Rhf8 {[%emt 0:19:30]} 17. g4 {[%emt 0:07:30]} Qd8 {[%emt 0:07:30]} 18. h3 {[%emt 0:10:30]} exf4 {[%emt 0:04:30]} 19. Bf2 {[%emt 0:01:30]} Ne5 {[%emt 0:01:30]} 20. Qxf4 {[%emt 0:02:30]} Nfd7 {[%emt 0:00:30]} 21. Be2 {[%emt 0:02:30]} Rc8 {[%emt 0:02:05]} 22. Nd5 {[%emt 0:02:30]} Bh4 {[%emt 0:03:41]} 23. Bd4 {[%emt 0:04:30]} Kh7 {[%emt 0:07:06]} 24. Qd2 {[%emt 0:05:30]} Bxd5 {[%emt 0:05:14]} 25. exd5 {[%emt 0:00:30]} Bf6 {[%emt 0:00:16]} 26. Qf4 {[%emt 0:16:30]} Bg7 {[%emt 0:01:10]} 27. h4 {[%emt 0:04:30]} Nb6 {[%emt 0:01:59]} 28. Qe4 {[%emt 0:02:30]} Nbc4 {[%emt 0:00:26]} 29. h5 {[%emt 0:02:30]} Qg5 {[%emt 0:00:04]} 30. Ka2 {[%emt 0:09:26]} Rce8 {[%emt 0:01:01]} 31. Qf4 {[%emt 0:00:35]} Qxf4 {[%emt 0:01:23]} 32. Rxf4 {[%emt 0:00:02]} Kg8 {[%emt 0:01:14]} 33. Nc1 {[%emt 0:00:26]} g5 {[%emt 0:00:28]} 34. Rf2 {[%emt 0:00:42]} Nd7 {[%emt 0:00:14]} 35. Bxc4 {[%emt 0:03:45]} bxc4 {[%emt 0:00:30]} 36. Bxg7 {[%emt 0:00:30]} Kxg7 {[%emt 0:00:30]} 37. Rd4 {[%emt 0:00:00]} Nb6 {[%emt 0:00:24]} 38. Ne2 {[%emt 0:01:47]} Re5 {[%emt 0:00:44]} 39. Ng3 {[%emt 0:01:55]} Rxd5 {[%emt 0:00:40]} 40. Re4 {[%emt 0:00:00]} Re5 {[%emt 0:00:00]} 41. Nf5+ {[%emt 0:01:52]} Kh7 {[%emt 0:10:21]} 42. Nxd6 {[%emt 0:00:00]} Rxe4 {[%emt 0:00:30]} 43. Nxe4 {[%emt 0:00:00]} Nd5 {[%emt 0:03:38]} 44. Nf6+ {[%emt 0:05:30]} Nxf6 {[%emt 0:02:05]} 45. Rxf6 {[%emt 0:00:30]} a5 {[%emt 0:00:00]} 46. a4 {[%emt 0:16:30]} Kg7 {[%emt 0:00:26]} 47. Rf5 {[%emt 0:01:30]} Re8 {[%emt 0:05:07]} 48. Rxa5 {[%emt 0:00:30]} Re4 {[%emt 0:00:04]} 49. Rd5 {[%emt 0:01:26]} Rxg4 {[%emt 0:00:47]} 50. a5 {[%emt 0:00:26]} Re4 {[%emt 0:00:34]} 51. b4 {[%emt 0:07:57]} cxb3+ {[%emt 0:00:33]} 52. cxb3 {[%emt 0:00:03]} g4 {[%emt 0:01:00]} 53. a6 {[%emt 0:02:23]} Re6 {[%emt 0:03:13]} 54. Ra5 {[%emt 0:01:26]} g3 {[%emt 0:00:06]} 55. Kb2 {[%emt 0:00:26]} g2 {[%emt 0:01:46]} 56. Ra1 {[%emt 0:00:02]} Rxa6 {[%emt 0:00:33]} 57. Rg1 {[%emt 0:00:02]} Ra5 {[%emt 0:00:33]} 58. Rxg2+ {[%emt 0:00:30]} Kf6 {[%emt 0:00:00]} 59. Rh2 {[%emt 0:00:18]} Kg5 {[%emt 0:00:22]} 60. b4 {[%emt 0:00:16]} Ra8 {[%emt 0:00:18]} 61. Kc3 {[%emt 0:00:36]} f5 {[%emt 0:00:07]} 62. b5 {[%emt 0:00:20]} f4 {[%emt 0:00:23]} 63. Kd4 {[%emt 0:01:52]} Rb8 {[%emt 0:01:41]} 64. Ke4 {[%emt 0:01:43]} Re8+ {[%emt 0:01:57]} 65. Kf3 {[%emt 0:00:39]} Re3+ {[%emt 0:00:34]} 66. Kf2 {[%emt 0:00:00]} Rb3 {[%emt 0:00:30]} 67. Rg2+ {[%emt 0:00:29]} Kxh5 {[%emt 0:00:10]} 68. Rg7 {[%emt 0:01:04]} Rxb5 {[%emt 0:01:35]} 69. Kf3 {[%emt 0:00:03]} Rb4 {[%emt 0:01:00]} 70. Rg8 {[%emt 0:00:29]} Kh4 {[%emt 0:00:22]} 71. Rg4+ {[%emt 0:00:44]} Kh3 {[%emt 0:00:30]} 72. Rxf4 {[%emt 0:00:00]} Rxf4+ {[%emt 0:00:09]} 73. Kxf4 {[%emt 0:00:29]} h5 {[%emt 0:00:30]} 74. Kf3 {[%emt 0:00:30]} h4 {[%emt 0:00:00]} 75. Kf2 {[%emt 0:00:00]} Kh2 {[%emt 0:00:00]} 76. Kf3 {[%emt 0:00:00]} h3 {[%emt 0:00:00]} 77. Kf2 {[%emt 0:00:00]} Kh1 {[%emt 0:00:23]} 78. Kf1 {[%emt 0:00:30]} h2 {[%emt 0:00:30]} 79. Kf2 {[%emt 0:00:00]} 1/2-1/2

[Event "TUR-chT Superleague 2018"]
[Site "Ankara"]
[Date "2018.07.25"]
[Round "1"]
[White "Benidze, Davit"]
[Black "Ozkan, Ervin"]
[Result "1-0"]
[ECO "A11"]
[WhiteElo "2487"]
[BlackElo "2171"]
[Annotator "ChessBase"]
[PlyCount "51"]
[EventDate "2018.07.25"]
[EventType "team-tourn"]
[EventCountry "TUR"]
[SourceTitle "playchess.com"]
[Source "ChessBase"]
[SourceQuality "1"]
[TimeControl "40/5400+30:1800+30"]

1. Nf3 {[%emt 0:00:30]} d5 {[%emt 0:00:30]} 2. g3 {[%emt 0:00:00]} c6 {[%emt 0:00:30]} 3. Bg2 {[%emt 0:00:00]} Nf6 {[%emt 0:00:30]} 4. O-O {[%emt 0:00:00]} Bf5 {[%emt 0:01:30]} 5. c4 {[%emt 0:00:00]} e6 {[%emt 0:00:30]} 6. cxd5 {[%emt 0:00:00]} exd5 {[%emt 0:02:30]} 7. d3 {[%emt 0:00:00]} Nbd7 {[%emt 0:00:30]} 8. Nc3 {[%emt 0:00:30]} Be7 {[%emt 0:03:30]} 9. Re1 {[%emt 0:03:30]} Bg6 {[%emt 0:12:30]} 10. e4 {[%emt 0:06:30]} dxe4 {[%emt 0:01:30]} 11. dxe4 {[%emt 0:00:30]} Nc5 {[%emt 0:03:30]} 12. Ne5 {[%emt 0:05:30]} Qxd1 {[%emt 0:07:30]} 13. Rxd1 {[%emt 0:00:30]} Bh5 {[%emt 0:33:30]} 14. f3 {[%emt 0:01:30]} Nfd7 {[%emt 0:19:57]} 15. Nc4 {[%emt 0:00:30]} O-O-O {[%emt 0:04:41]} 16. Bf4 {[%emt 0:01:30]} Nb6 {[%emt 0:00:37]} 17. Nd6+ {[%emt 0:00:30]} Bxd6 {[%emt 0:00:06]} 18. Bxd6 {[%emt 0:00:30]} Ne6 {[%emt 0:00:30]} 19. b3 {[%emt 0:00:30]} Rd7 {[%emt 0:01:33]} 20. Rac1 {[%emt 0:00:00]} Kd8 {[%emt 0:00:46]} 21. Bb8 {[%emt 0:01:00]} Nc8 {[%emt 0:00:56]} 22. g4 {[%emt 0:00:00]} Bg6 {[%emt 0:00:57]} 23. Rxd7+ {[%emt 0:00:00]} Kxd7 {[%emt 0:00:30]} 24. Rd1+ {[%emt 0:00:30]} Ke7 {[%emt 0:02:41]} 25. f4 {[%emt 0:00:00]} f5 {[%emt 0:00:31]} 26. exf5 {[%emt 0:00:00]} 1-0

[Event "TUR-chT Superleague 2018"]
[Site "Ankara"]
[Date "2018.07.25"]
[Round "1"]
[White "Atalik, Ekaterina"]
[Black "Muzychuk, Mariya"]
[Result "1/2-1/2"]
[ECO "D78"]
[WhiteElo "2461"]
[BlackElo "2521"]
[Annotator "ChessBase"]
[PlyCount "66"]
[EventDate "2018.07.25"]
[EventType "team-tourn"]
[EventCountry "TUR"]
[SourceTitle "playchess.com"]
[Source "ChessBase"]
[SourceQuality "1"]
[TimeControl "40/5400+30:1800+30"]

1. d4 {[%emt 0:00:30]} Nf6 {[%emt 0:00:30]} 2. Nf3 {[%emt 0:00:30]} g6 {[%emt 0:00:30]} 3. g3 {[%emt 0:00:30]} Bg7 {[%emt 0:00:30]} 4. Bg2 {[%emt 0:00:30]} O-O {[%emt 0:00:30]} 5. O-O {[%emt 0:00:00]} d5 {[%emt 0:00:00]} 6. c4 {[%emt 0:00:00]} c6 {[%emt 0:00:00]} 7. Qb3 {[%emt 0:00:30]} Qb6 {[%emt 0:00:30]} 8. Nc3 {[%emt 0:01:30]} Rd8 {[%emt 0:03:30]} 9. Rd1 {[%emt 0:04:30]} Bf5 {[%emt 0:02:30]} 10. Ne1 {[%emt 0:05:30]} Ne4 {[%emt 0:15:30]} 11. Be3 {[%emt 0:15:30]} Nxc3 {[%emt 0:06:30]} 12. bxc3 {[%emt 0:01:30]} dxc4 {[%emt 0:22:30]} 13. Qxc4 {[%emt 0:00:30]} Qa6 {[%emt 0:03:30]} 14. Qxa6 {[%emt 0:06:30]} Nxa6 {[%emt 0:00:30]} 15. Bf4 {[%emt 0:04:30]} Rd7 {[%emt 0:04:30]} 16. e4 {[%emt 0:02:30]} Be6 {[%emt 0:00:30]} 17. Nd3 {[%emt 0:01:30]} Rad8 {[%emt 0:02:30]} 18. Rdc1 {[%emt 0:14:30]} b5 {[%emt 0:04:30]} 19. Ne5 {[%emt 0:03:30]} Bxe5 {[%emt 0:01:30]} 20. Bxe5 {[%emt 0:00:00]} g5 {[%emt 0:06:30]} 21. a4 {[%emt 0:10:00]} b4 {[%emt 0:00:30]} 22. Bf1 {[%emt 0:01:30]} f6 {[%emt 0:00:30]} 23. Bxf6 {[%emt 0:03:30]} exf6 {[%emt 0:01:30]} 24. Bxa6 {[%emt 0:00:30]} bxc3 {[%emt 0:00:00]} 25. Rxc3 {[%emt 0:00:30]} Rxd4 {[%emt 0:00:00]} 26. Rxc6 {[%emt 0:03:27]} Rxe4 {[%emt 0:00:30]} 27. a5 {[%emt 0:09:16]} Kf7 {[%emt 0:02:30]} 28. Rb1 {[%emt 0:06:33]} Re5 {[%emt 0:06:09]} 29. Rc7+ {[%emt 0:00:37]} Rd7 {[%emt 0:01:13]} 30. Rxd7+ {[%emt 0:00:30]} Bxd7 {[%emt 0:00:00]} 31. Bc4+ {[%emt 0:00:29]} Ke7 {[%emt 0:00:52]} 32. a6 {[%emt 0:00:51]} Kd6 {[%emt 0:00:31]} 33. Bf1 {[%emt 0:01:16]} Kd5 {[%emt 0:02:24]} 1/2-1/2

[Event "TUR-chT Superleague 2018"]
[Site "Ankara"]
[Date "2018.07.25"]
[Round "1"]
[White "Ivic, Velimir"]
[Black "Samani, Yamac"]
[Result "1-0"]
[ECO "C91"]
[WhiteElo "2432"]
[BlackElo "2227"]
[Annotator "NA"]
[PlyCount "89"]
[EventDate "2018.07.25"]
[EventType "team-tourn"]
[EventCountry "TUR"]
[SourceTitle "playchess.com"]
[Source "ChessBase"]
[SourceQuality "1"]
[TimeControl "40/5400+30:1800+30"]

1. e4 {[%emt 0:00:30]} e5 {[%emt 0:00:30]} 2. Nf3 {[%emt 0:00:30]} Nc6 {[%emt 0:00:30]} 3. Bb5 {[%emt 0:00:30]} Nf6 {[%emt 0:00:00]} 4. d3 {[%emt 0:00:30]} d6 {[%emt 0:00:00]} 5. O-O {[%emt 0:00:30]} Be7 {[%emt 0:00:30]} 6. c3 {[%emt 0:02:30]} O-O {[%emt 0:00:00]} 7. Re1 {[%emt 0:00:30]} a6 {[%emt 0:00:00]} 8. Ba4 {[%emt 0:01:30]} b5 {[%emt 0:01:30]} 9. Bc2 {[%emt 0:00:30]} Re8 {[%emt 0:01:30]} 10. Nbd2 {[%emt 0:04:30]} Bf8 {[%emt 0:00:30]} 11. d4 {[%emt 0:09:30]} exd4 {[%emt 0:04:30]} 12. cxd4 {[%emt 0:06:30]} Bg4 {[%emt 0:01:30]} 13. h3 {[%emt 0:12:30]} Bh5 {[%emt 0:03:30]} 14. g4 {[%emt 0:06:30]} Nxg4 {[%emt 0:30:30]} 15. hxg4 {[%emt 0:02:30]} Bxg4 {[%emt 0:01:30]} 16. Nf1 {[%emt 0:09:30]} Bxf3 {[%emt 0:02:30]} 17. Qxf3 {[%emt 0:00:30]} Nxd4 {[%emt 0:00:00]} 18. Qd3 {[%emt 0:06:30]} Nxc2 {[%emt 0:06:00]} 19. Qxc2 {[%emt 0:00:00]} d5 {[%emt 0:02:30]} 20. Bf4 {[%emt 0:09:00]} Qf6 {[%emt 0:07:30]} 21. Bg3 {[%emt 0:02:30]} Qg6 {[%emt 0:02:30]} 22. Qxc7 {[%emt 0:02:30]} dxe4 {[%emt 0:02:30]} 23. Rac1 {[%emt 0:00:30]} Re6 {[%emt 0:04:30]} 24. Red1 {[%emt 0:03:04]} Rae8 {[%emt 0:09:09]} 25. Rd8 {[%emt 0:04:54]} e3 {[%emt 0:05:56]} 26. fxe3 {[%emt 0:01:43]} h5 {[%emt 0:07:31]} 27. Qd7 {[%emt 0:03:52]} Rxd8 {[%emt 0:04:29]} 28. Qxd8 {[%emt 0:00:10]} f5 {[%emt 0:00:43]} 29. Rc8 {[%emt 0:03:47]} Rf6 {[%emt 0:00:06]} 30. Qd5+ {[%emt 0:01:39]} Kh7 {[%emt 0:00:09]} 31. Kf2 {[%emt 0:00:19]} Qg4 {[%emt 0:01:29]} 32. Be5 {[%emt 0:02:54]} f4 {[%emt 0:01:07]} 33. Bxf6 {[%emt 0:01:23]} Qxc8 {[%emt 0:00:28]} 34. Qxh5+ {[%emt 0:00:37]} Kg8 {[%emt 0:00:30]} 35. Qd5+ {[%emt 0:00:00]} Kh8 {[%emt 0:00:00]} 36. Bc3 {[%emt 0:01:52]} b4 {[%emt 0:01:04]} 37. Qh1+ {[%emt 0:00:30]} Kg8 {[%emt 0:00:30]} 38. Qd5+ {[%emt 0:00:30]} Kh8 {[%emt 0:00:00]} 39. Bd4 {[%emt 0:00:20]} Qc2+ {[%emt 0:00:00]} 40. Kg1 {[%emt 0:00:00]} fxe3 {[%emt 0:00:00]} 41. Qh5+ {[%emt 0:01:26]} Kg8 {[%emt 0:01:49]} 42. Qd5+ {[%emt 0:00:30]} Kh7 {[%emt 0:00:00]} 43. Nxe3 {[%emt 0:01:30]} Qc1+ {[%emt 0:00:00]} 44. Kf2 {[%emt 0:00:30]} Qd2+ {[%emt 0:00:30]} 45. Kf3 {[%emt 0:00:00]} 1-0

[Event "TUR-chT Superleague 2018"]
[Site "Ankara"]
[Date "2018.07.25"]
[Round "1"]
[White "Badelka, Olga"]
[Black "Savina, Anastasia"]
[Result "1/2-1/2"]
[ECO "B13"]
[WhiteElo "2407"]
[BlackElo "2342"]
[Annotator "NA"]
[PlyCount "61"]
[EventDate "2018.07.25"]
[EventType "team-tourn"]
[EventCountry "TUR"]
[SourceTitle "playchess.com"]
[Source "ChessBase"]
[SourceQuality "1"]
[TimeControl "40/5400+30:1800+30"]

1. d4 {[%emt 0:00:30]} d5 {[%emt 0:00:30]} 2. Bf4 {[%emt 0:00:30]} c5 {[%emt 0:03:30]} 3. e3 {[%emt 0:00:30]} cxd4 {[%emt 0:02:30]} 4. exd4 {[%emt 0:00:30]} Nc6 {[%emt 0:03:30]} 5. c3 {[%emt 0:00:30]} Bf5 {[%emt 0:02:30]} 6. Bd3 {[%emt 0:02:30]} Bxd3 {[%emt 0:13:30]} 7. Qxd3 {[%emt 0:00:00]} e6 {[%emt 0:00:30]} 8. Nf3 {[%emt 0:00:00]} Bd6 {[%emt 0:02:30]} 9. Bxd6 {[%emt 0:02:30]} Qxd6 {[%emt 0:00:30]} 10. O-O {[%emt 0:00:30]} Nge7 {[%emt 0:06:30]} 11. Re1 {[%emt 0:03:30]} O-O {[%emt 0:08:30]} 12. Nbd2 {[%emt 0:00:30]} Ng6 {[%emt 0:01:30]} 13. Re3 {[%emt 0:10:30]} Nf4 {[%emt 0:07:30]} 14. Qf1 {[%emt 0:03:30]} f6 {[%emt 0:05:30]} 15. Rae1 {[%emt 0:00:30]} Rae8 {[%emt 0:01:30]} 16. g3 {[%emt 0:00:30]} Ng6 {[%emt 0:01:30]} 17. h4 {[%emt 0:06:30]} e5 {[%emt 0:13:30]} 18. c4 {[%emt 0:05:30]} Re7 {[%emt 0:03:30]} 19. dxe5 {[%emt 0:14:30]} Ngxe5 {[%emt 0:02:10]} 20. Nxe5 {[%emt 0:03:30]} Rxe5 {[%emt 0:02:48]} 21. cxd5 {[%emt 0:00:30]} Qxd5 {[%emt 0:02:26]} 22. Ne4 {[%emt 0:04:30]} Qxa2 {[%emt 0:04:58]} 23. f4 {[%emt 0:00:30]} Re7 {[%emt 0:04:43]} 24. b3 {[%emt 0:07:30]} Qa6 {[%emt 0:02:00]} 25. Qxa6 {[%emt 0:12:30]} bxa6 {[%emt 0:00:30]} 26. Nxf6+ {[%emt 0:00:30]} Rxf6 {[%emt 0:01:27]} 27. Rxe7 {[%emt 0:00:30]} Nxe7 {[%emt 0:00:30]} 28. Rxe7 {[%emt 0:00:00]} Rb6 {[%emt 0:00:00]} 29. Rxa7 {[%emt 0:00:00]} Rxb3 {[%emt 0:00:25]} 30. Ra8+ {[%emt 0:00:00]} Kf7 {[%emt 0:00:00]} 31. Ra7+ {[%emt 0:00:00]} 1/2-1/2

[Event "TUR-chT Superleague 2018"]
[Site "Ankara"]
[Date "2018.07.25"]
[Round "1"]
[White "Unuk, Laura"]
[Black "Injac, Teodora"]
[Result "1/2-1/2"]
[ECO "E97"]
[WhiteElo "2355"]
[BlackElo "2302"]
[Annotator "NA"]
[PlyCount "104"]
[EventDate "2018.07.25"]
[EventType "team-tourn"]
[EventCountry "TUR"]
[SourceTitle "playchess.com"]
[Source "ChessBase"]
[SourceQuality "1"]
[TimeControl "40/5400+30:1800+30"]

1. Nf3 {[%emt 0:00:30]} Nf6 {[%emt 0:00:30]} 2. c4 {[%emt 0:00:00]} g6 {[%emt 0:00:30]} 3. Nc3 {[%emt 0:00:00]} Bg7 {[%emt 0:00:30]} 4. e4 {[%emt 0:00:30]} d6 {[%emt 0:00:30]} 5. d4 {[%emt 0:00:30]} O-O {[%emt 0:00:00]} 6. Be2 {[%emt 0:00:30]} e5 {[%emt 0:01:00]} 7. O-O {[%emt 0:00:30]} Nc6 {[%emt 0:02:30]} 8. d5 {[%emt 0:00:30]} Ne7 {[%emt 0:00:30]} 9. b4 {[%emt 0:00:30]} Nd7 {[%emt 0:05:30]} 10. g4 {[%emt 0:16:30]} a5 {[%emt 0:02:30]} 11. bxa5 {[%emt 0:01:30]} Nc5 {[%emt 0:03:30]} 12. g5 {[%emt 0:07:30]} Bh3 {[%emt 0:11:30]} 13. Re1 {[%emt 0:00:30]} f5 {[%emt 0:08:30]} 14. gxf6 {[%emt 0:08:30]} Bxf6 {[%emt 0:08:30]} 15. Bh6 {[%emt 0:12:30]} Qd7 {[%emt 0:08:30]} 16. Kh1 {[%emt 0:03:30]} Bg7 {[%emt 0:09:30]} 17. Be3 {[%emt 0:06:30]} Rxa5 {[%emt 0:10:30]} 18. Ng5 {[%emt 0:07:30]} h6 {[%emt 0:05:09]} 19. Nxh3 {[%emt 0:01:30]} Qxh3 {[%emt 0:00:02]} 20. Rg1 {[%emt 0:02:30]} Ra3 {[%emt 0:02:31]} 21. Rg3 {[%emt 0:08:30]} Qh4 {[%emt 0:00:16]} 22. Rg4 {[%emt 0:01:35]} Qh3 {[%emt 0:02:03]} 23. Bf1 {[%emt 0:00:47]} Qh5 {[%emt 0:01:05]} 24. Rc1 {[%emt 0:04:53]} Rxc3 {[%emt 0:07:29]} 25. Rxc3 {[%emt 0:00:43]} Nxe4 {[%emt 0:00:11]} 26. Rc1 {[%emt 0:02:53]} Nxf2+ {[%emt 0:06:55]} 27. Bxf2 {[%emt 0:00:04]} Rxf2 {[%emt 0:00:01]} 28. Rg2 {[%emt 0:00:20]} Qf5 {[%emt 0:01:04]} 29. Rxf2 {[%emt 0:03:50]} Qxf2 {[%emt 0:00:30]} 30. Qg4 {[%emt 0:00:00]} Qe3 {[%emt 0:01:10]} 31. Rc2 {[%emt 0:01:22]} Kh7 {[%emt 0:00:49]} 32. Rg2 {[%emt 0:02:27]} Qe1 {[%emt 0:01:24]} 33. Rg1 {[%emt 0:00:32]} Qb1 {[%emt 0:00:32]} 34. Bg2 {[%emt 0:02:58]} Qf5 {[%emt 0:00:28]} 35. Qe2 {[%emt 0:00:45]} Qf6 {[%emt 0:00:33]} 36. Be4 {[%emt 0:00:34]} Nf5 {[%emt 0:00:34]} 37. Qg4 {[%emt 0:01:50]} h5 {[%emt 0:00:12]} 38. Qf3 {[%emt 0:01:57]} Bh6 {[%emt 0:00:36]} 39. Bxf5 {[%emt 0:00:55]} Qxf5 {[%emt 0:00:10]} 40. Qxf5 {[%emt 0:00:56]} gxf5 {[%emt 0:00:00]} 41. Kg2 {[%emt 0:03:39]} Be3 {[%emt 0:13:22]} 42. Rb1 {[%emt 0:00:30]} b6 {[%emt 0:00:44]} 43. Kf3 {[%emt 0:06:30]} Bd4 {[%emt 0:00:50]} 44. Rd1 {[%emt 0:06:14]} Kg6 {[%emt 0:05:19]} 45. Rd2 {[%emt 0:00:27]} Kf6 {[%emt 0:05:52]} 46. Rg2 {[%emt 0:04:07]} e4+ {[%emt 0:00:29]} 47. Kf4 {[%emt 0:00:36]} Be5+ {[%emt 0:00:38]} 48. Ke3 {[%emt 0:00:05]} h4 {[%emt 0:00:05]} 49. h3 {[%emt 0:06:21]} Bg3 {[%emt 0:01:00]} 50. Kd4 {[%emt 0:00:04]} Be5+ {[%emt 0:03:59]} 51. Ke3 {[%emt 0:00:30]} Bg3 {[%emt 0:00:00]} 52. Kd4 {[%emt 0:00:00]} Be5+ {[%emt 0:02:17]} 1/2-1/2